bitfinex/quotes_BTCUSD_20250129
["timestamp","ask_amount","ask_price","bid_price","bid_amount"]
[1738193230662,0.0001221,104160.0,104150.0,0.17970893]
[1738193231093,0.0001221,104160.0,104150.0,0.150023]
[1738193232239,0.1441311,104160.0,104150.0,0.0072531]
[1738193232446,0.1441311,104160.0,104150.0,0.006]
[1738193232846,0.24257432,104160.0,104150.0,0.006]
[1738193233141,0.39137426,104160.0,104150.0,0.0072531]
[1738193233442,0.39137426,104160.0,104150.0,0.1512761]
[1738193234063,0.39137426,104160.0,104150.0,0.1502761]
[1738193234227,0.39137426,104160.0,104150.0,0.0062531]
[1738193234589,0.39137426,104160.0,104150.0,0.1502761]
[1738193234797,0.39137426,104160.0,104150.0,0.0012531]
[1738193235005,0.294023,104150.0,104140.0,0.0012531]
[1738193235182,0.39126616,104150.0,104140.0,0.0012531]
[1738193235808,0.24724316,104150.0,104130.0,0.336104]
[1738193235980,0.144036,104140.0,104130.0,0.14409299]
[1738193236161,0.144036,104140.0,104130.0,0.14534609]
[1738193236814,0.26720316,104150.0,104140.0,0.1452891]
[1738193237624,0.01996,104150.0,104140.0,0.1452891]
[1738193237832,0.01996,104150.0,104140.0,0.34577775]
[1738193238172,0.01996,104150.0,104140.0,0.38139037]
[1738193238835,0.01996,104150.0,104140.0,0.25780172]
[1738193241219,0.01996,104150.0,104140.0,0.25805771]
[1738193242567,0.01996,104150.0,104140.0,0.38164636]
[1738193242762,0.01996,104150.0,104140.0,0.25805771]
[1738193243324,0.01996,104150.0,104140.0,0.25680461]
[1738193243521,0.01996,104150.0,104140.0,0.25805771]
[1738193244311,0.01996,104150.0,104140.0,0.35530087]
[1738193246959,0.01996,104150.0,104140.0,0.50188952]
[1738193247161,0.0001221,104160.0,104150.0,0.1452761]
[1738193247355,0.0001221,104160.0,104150.0,0.29847737]
[1738193248027,0.0001221,104160.0,104150.0,0.17488872]
[1738193248434,0.0001221,104160.0,104150.0,0.18288872]
[1738193249440,0.0001221,104160.0,104150.0,0.30847737]
[1738193251927,0.0001221,104160.0,104150.0,0.18488872]
[1738193252914,0.0001221,104160.0,104150.0,0.18514471]
[1738193260157,0.0001221,104160.0,104150.0,0.30873336]
[1738193261317,0.0001221,104160.0,104150.0,0.18514471]
[1738193270754,0.0001221,104160.0,104150.0,0.40597652]
[1738193271039,0.0001221,104160.0,104150.0,0.47527652]
[1738193271241,0.654932,104190.0,104170.0,0.3372311]
[1738193271448,0.143981,104180.0,104170.0,0.03086572]
[1738193271578,0.143981,104180.0,104170.0,0.17486072]
[1738193272418,0.1440732,104180.0,104170.0,0.17486072]
[1738193273022,0.1440732,104180.0,104170.0,0.03086572]
[1738193273451,0.1440732,104180.0,104170.0,0.17486072]
[1738193274087,9.22e-05,104180.0,104170.0,0.17486072]
[1738193275096,9.22e-05,104180.0,104170.0,0.17686072]
[1738193275682,0.1440732,104180.0,104170.0,0.17686072]
[1738193276651,9.22e-05,104180.0,104170.0,0.17686072]
[1738193276853,0.0002141,104180.0,104170.0,0.17686072]
[1738193281600,0.0002141,104180.0,104170.0,0.37784937]
[1738193283613,0.0002141,104180.0,104170.0,0.25426072]
[1738193286242,0.0002141,104180.0,104170.0,0.17560762]
[1738193287489,0.0002141,104180.0,104170.0,0.17686072]
[1738193288950,0.0002141,104180.0,104170.0,0.25496072]
[1738193289724,0.0002141,104180.0,104170.0,0.37854937]
[1738193290118,0.000122,104190.0,104170.0,0.37854937]
[1738193290259,0.000122,104190.0,104180.0,0.143981]
[1738193290471,0.000122,104190.0,104180.0,0.17484672]
[1738193291925,0.000122,104190.0,104180.0,0.17584672]
[1738193292544,0.000122,104190.0,104180.0,0.18084672]
[1738193293795,0.000122,104190.0,104180.0,0.30443537]
[1738193294001,0.000122,104190.0,104180.0,0.18084672]
[1738193294996,0.000122,104190.0,104180.0,0.17959362]
[1738193295760,0.000122,104190.0,104180.0,0.18921798]
[1738193296819,0.000122,104190.0,104180.0,0.19047108]
[1738193298175,0.000122,104190.0,104180.0,0.31405973]
[1738193298385,0.000122,104190.0,104180.0,0.41130289]
[1738193298595,0.000122,104190.0,104180.0,0.49430289]
[1738193298807,0.0469221,104210.0,104200.0,0.143953]
[1738193299048,0.00060197,104210.0,104200.0,0.17481872]
[1738193299277,0.00060197,104210.0,104200.0,0.50165053]
[1738193299971,0.00160197,104210.0,104200.0,0.50165053]
[1738193300589,0.00060197,104210.0,104200.0,0.50165053]
[1738193300806,0.00060197,104210.0,104200.0,0.50265053]
[1738193301773,0.00060197,104210.0,104200.0,0.50765053]
[1738193302158,0.00060197,104210.0,104200.0,0.51744391]
[1738193305401,0.00060197,104210.0,104200.0,0.51619081]
[1738193305601,0.00060197,104210.0,104200.0,0.51744391]
[1738193306352,0.00060197,104210.0,104200.0,0.53563712]
[1738193306608,0.00060197,104210.0,104200.0,0.53689022]
[1738193307010,0.00060197,104210.0,104200.0,0.53563712]
[1738193307962,0.00060197,104210.0,104200.0,0.41204847]
[1738193308136,0.00060197,104210.0,104200.0,0.53563712]
[1738193309492,0.00060197,104210.0,104200.0,0.51619081]
[1738193309909,0.00060197,104210.0,104200.0,0.52744391]
[1738193310804,0.00060197,104210.0,104200.0,0.74174391]
[1738193311211,0.00060197,104210.0,104200.0,0.73674391]
[1738193311482,0.00060197,104210.0,104200.0,0.74474391]
[1738193311720,0.00060197,104210.0,104200.0,0.73674391]
[1738193312074,0.00060197,104210.0,104200.0,0.74674391]
[1738193312444,0.00060197,104210.0,104200.0,0.74574391]
[1738193312844,0.00060197,104210.0,104200.0,0.75474391]
[1738193317430,0.0001219,104220.0,104210.0,0.30178175]
[1738193317627,0.00026578,104220.0,104210.0,0.39902491]
[1738193317789,0.00026578,104220.0,104210.0,0.42863753]
[1738193318628,0.00026578,104220.0,104210.0,0.43763753]
[1738193318928,0.0001219,104240.0,104230.0,0.143912]
[1738193319125,0.0001219,104240.0,104230.0,0.1451651]
[1738193319530,0.0001219,104240.0,104230.0,0.36599691]
[1738193319730,0.0001219,104240.0,104230.0,0.39537859]
[1738193320129,0.0001219,104240.0,104230.0,0.39737859]
[1738193320938,0.0001219,104240.0,104230.0,0.40537859]
[1738193321135,0.0001219,104240.0,104230.0,0.42837859]
[1738193321482,0.0001219,104240.0,104230.0,0.41837859]
[1738193321639,0.0001219,104240.0,104230.0,0.42737859]
[1738193321842,0.0001219,104240.0,104230.0,0.43337859]
[1738193322249,0.0001219,104240.0,104230.0,0.42737859]
[1738193322679,0.0001219,104240.0,104230.0,0.43437859]
[1738193325819,0.0001219,104240.0,104230.0,0.31078994]
[1738193326042,0.0776219,104240.0,104230.0,0.19054678]
[1738193326220,0.1263219,104240.0,104230.0,0.19054678]
[1738193326557,0.1263219,104240.0,104230.0,0.1611651]
[1738193327348,0.1263219,104240.0,104230.0,0.19057359]
[1738193329018,0.0001219,104240.0,104230.0,0.6951054]
[1738193329249,0.0001219,104240.0,104230.0,0.6851054]
[1738193329691,0.0001219,104240.0,104230.0,0.6651054]
[1738193330129,0.0001219,104240.0,104230.0,0.6851054]
[1738193331432,0.0001219,104240.0,104230.0,0.28656365]
[1738193331641,0.0001219,104240.0,104230.0,0.18932049]
[1738193331825,0.0001219,104240.0,104230.0,0.19057359]
[1738193332078,0.0001219,104240.0,104230.0,0.31416224]
[1738193333447,0.0001219,104240.0,104230.0,0.19057359]
[1738193334218,0.0001219,104240.0,104230.0,0.5146054]
[1738193337350,0.01678857,104240.0,104230.0,0.5146054]
[1738193338881,0.1330715,104260.0,104250.0,0.1451371]
[1738193339054,0.13321535,104260.0,104250.0,0.1451371]
[1738193339257,0.13321535,104260.0,104250.0,0.17454559]
[1738193340429,0.13321535,104260.0,104250.0,0.17554559]
[1738193340630,0.13321535,104260.0,104250.0,0.18054559]
[1738193341545,0.00291535,104260.0,104250.0,0.4243774]
[1738193341864,0.00291535,104260.0,104250.0,0.5002774]
[1738193343709,0.00291535,104260.0,104250.0,0.62386605]
[1738193343858,0.00291535,104260.0,104250.0,0.5002774]
[1738193346085,0.00291535,104260.0,104250.0,0.50985077]
[1738193347490,0.00291535,104260.0,104250.0,0.51010655]
[1738193347983,0.00291535,104260.0,104250.0,0.52911894]
[1738193348414,0.00291535,104260.0,104250.0,0.52311894]
[1738193348827,0.00291535,104260.0,104250.0,0.53711894]
[1738193349033,0.00291535,104260.0,104250.0,0.52811894]
[1738193349561,0.00291535,104260.0,104250.0,0.53711894]
[1738193350175,0.10684852,104280.0,104270.0,0.143857]
[1738193350406,0.10684852,104280.0,104270.0,0.17451859]
[1738193351990,0.10684852,104280.0,104270.0,0.18451859]
[1738193352191,0.10684852,104280.0,104270.0,0.1551101]
[1738193359515,0.10697032,104280.0,104270.0,0.1551101]
[1738193360662,0.0001218,104280.0,104270.0,0.1551101]
[1738193362958,0.0001218,104280.0,104270.0,0.153857]
[1738193363169,0.0001218,104280.0,104270.0,0.18459451]
[1738193365858,0.0001218,104280.0,104270.0,0.18459451]
[1738193372884,0.0486218,104280.0,104270.0,0.18459451]
[1738193376928,0.64549661,104280.0,104270.0,0.03948441]
[1738193377135,0.52190796,104280.0,104270.0,0.04073751]
[1738193377351,0.52190796,104280.0,104270.0,0.0112531]
[1738193377851,0.52190796,104280.0,104270.0,0.0032531]
[1738193378259,0.52190796,104280.0,104270.0,0.0062531]
[1738193378452,0.52190796,104280.0,104270.0,0.0072531]
[1738193379822,0.52190796,104280.0,104270.0,0.0062531]
[1738193380225,0.52190796,104280.0,104270.0,0.0012531]
[1738193380555,0.64549661,104280.0,104270.0,0.0032531]
[1738193381063,0.64549661,104280.0,104270.0,0.002]
[1738193384355,0.64549661,104280.0,104270.0,0.0032531]
[1738193385367,0.64549661,104280.0,104270.0,0.002]
[1738193386697,0.68430696,104280.0,104270.0,0.0032531]
[1738193386975,0.60310746,104280.0,104270.0,0.002]
[1738193387177,0.60310746,104280.0,104270.0,0.0032531]
[1738193387599,0.60310746,104280.0,104270.0,0.002]
[1738193388005,0.60310746,104280.0,104270.0,0.0032531]
[1738193388198,0.60310746,104280.0,104270.0,0.002]
[1738193389609,0.60310746,104280.0,104270.0,0.0032531]
[1738193392170,0.60310746,104280.0,104270.0,0.002]
[1738193394500,0.68430696,104280.0,104270.0,0.002]
[1738193394935,0.60310746,104280.0,104270.0,0.002]
[1738193396641,0.60310746,104280.0,104270.0,0.0032531]
[1738193398285,0.2939648,104280.0,104270.0,0.1471101]
[1738193399765,0.1501218,104280.0,104270.0,0.1471101]
[1738193400175,0.2939648,104280.0,104270.0,0.1471101]
[1738193400371,0.0001218,104280.0,104270.0,0.1471101]
[1738193400595,0.0001218,104280.0,104270.0,0.1956101]
[1738193402781,0.1439648,104280.0,104270.0,0.22511171]
[1738193403123,0.1439648,104280.0,104270.0,0.17661171]
[1738193403124,0.226363,104280.0,104270.0,0.17661171]
[1738193403246,0.1439648,104280.0,104270.0,0.1471101]
[1738193406420,0.1439648,104280.0,104270.0,0.17662097]
[1738193409180,0.32240746,104280.0,104270.0,0.03276397]
[1738193409387,0.67730696,104280.0,104270.0,0.002]
[1738193409587,0.78329126,104280.0,104270.0,0.002]
[1738193409789,0.1237,104270.0,104260.0,0.00025578]
[1738193410008,0.66920274,104270.0,104260.0,0.00025578]
[1738193410213,0.63321868,104270.0,104260.0,0.00025578]
[1738193410415,0.44599966,104270.0,104260.0,0.00025578]
[1738193410849,0.09724316,104270.0,104260.0,0.14537988]
[1738193411062,0.143857,104270.0,104260.0,0.14537988]
[1738193411274,0.2250565,104270.0,104260.0,0.00150888]
[1738193411679,0.2250565,104270.0,104260.0,0.14537988]
[1738193411896,0.41965642,104270.0,104260.0,0.00025578]
[1738193412098,0.41965642,104270.0,104260.0,0.00225578]
[1738193412099,0.58225592,104270.0,104260.0,0.00225578]
[1738193412315,0.77755592,104270.0,104260.0,0.00090268]
[1738193412517,0.78755592,104270.0,104260.0,0.00090268]
[1738193412719,0.80234072,104270.0,104260.0,0.00090268]
[1738193413022,0.82552909,104270.0,104260.0,0.00090268]
[1738193413636,0.370971,104260.0,104250.0,0.00025578]
[1738193413784,0.69303565,104260.0,104250.0,0.00025578]
[1738193414190,0.51831366,104260.0,104250.0,0.00025578]
[1738193414398,0.59951316,104260.0,104250.0,0.00025578]
[1738193414593,0.56090607,104260.0,104250.0,0.00025578]
[1738193414842,0.63800607,104260.0,104250.0,0.00025578]
[1738193415401,0.63900607,104260.0,104250.0,0.00025578]
[1738193415807,0.73636283,104260.0,104250.0,0.00025578]
[1738193416274,0.63900607,104260.0,104250.0,0.00025578]
[1738193428569,0.49513507,104260.0,104230.0,0.33695168]
[1738193428775,0.74984232,104250.0,104230.0,0.33695168]
[1738193429408,0.143898,104240.0,104230.0,0.33695168]
[1738193430635,0.14509725,104240.0,104230.0,0.33795168]
[1738193430933,0.14509725,104240.0,104230.0,0.14481558]
[1738193431657,0.14509725,104240.0,104230.0,0.14606868]
[1738193431829,0.14509725,104240.0,104230.0,0.15106868]
[1738193432026,0.24234041,104240.0,104230.0,0.15089221]
[1738193432226,0.36493307,104240.0,104230.0,0.006]
[1738193432651,0.24114116,104240.0,104230.0,0.149912]
[1738193434397,0.24114116,104240.0,104230.0,0.1511651]
[1738193434537,0.32239134,104240.0,104230.0,0.1511651]
[1738193435709,0.24114116,104240.0,104230.0,0.1511651]
[1738193435914,0.32239134,104240.0,104230.0,0.1511651]
[1738193437850,0.61826538,104250.0,104230.0,0.4191391]
[1738193438046,0.71550854,104250.0,104230.0,0.6110131]
[1738193438437,0.90736554,104250.0,104230.0,0.6110131]
[1738193438845,0.143898,104240.0,104230.0,0.2262651]
[1738193439095,0.143898,104240.0,104230.0,0.2212651]
[1738193439451,0.52364954,104250.0,104230.0,0.4151391]
[1738193439655,0.143898,104240.0,104230.0,0.4151391]
[1738193440179,0.143898,104240.0,104230.0,0.4161391]
[1738193440342,0.22514818,104240.0,104230.0,0.4161391]
[1738193440695,0.143898,104240.0,104230.0,0.4141391]
[1738193441095,0.143898,104240.0,104230.0,0.4191391]
[1738193441524,0.22514818,104240.0,104230.0,0.4191391]
[1738193441822,0.143898,104240.0,104230.0,0.4191391]
[1738193442499,0.22514818,104240.0,104230.0,0.4191391]
[1738193442705,0.22514818,104240.0,104230.0,0.4193953]
[1738193442922,0.22527018,104240.0,104230.0,0.4193953]
[1738193443329,0.14402,104240.0,104230.0,0.4193953]
[1738193444675,0.14402,104240.0,104230.0,0.44900924]
[1738193446576,0.000122,104240.0,104230.0,0.44900924]
[1738193447691,0.14402,104240.0,104230.0,0.44900924]
[1738193448628,0.32371254,104240.0,104230.0,0.03587014]
[1738193448844,0.40376352,104240.0,104230.0,0.03587014]
[1738193449091,0.67976352,104240.0,104230.0,0.0062562]
[1738193450144,0.67976352,104240.0,104230.0,0.0002562]
[1738193450385,0.7610137,104240.0,104230.0,0.0002562]
[1738193450606,0.88315526,104240.0,104230.0,0.0022562]
[1738193450818,0.77712028,104240.0,104230.0,0.0022562]
[1738193451200,0.67976352,104240.0,104230.0,0.0002562]
[1738193451635,0.60266352,104240.0,104230.0,0.0002562]
[1738193452375,0.55676352,104240.0,104230.0,0.0002562]
[1738193452613,0.47551334,104240.0,104230.0,0.0002562]
[1738193452769,0.55676352,104240.0,104230.0,0.0002562]
[1738193453333,0.24126316,104240.0,104230.0,0.0002562]
[1738193453542,0.001122,104240.0,104230.0,0.1454213]
[1738193453745,0.14502,104240.0,104230.0,0.1454213]
[1738193454383,0.14402,104240.0,104230.0,0.1454213]
[1738193454657,0.14402,104240.0,104230.0,0.1474213]
[1738193454904,0.000122,104240.0,104230.0,0.1474213]
[1738193455109,0.14402,104240.0,104230.0,0.1474213]
[1738193455309,0.000122,104240.0,104230.0,0.1474213]
[1738193455824,0.14402,104240.0,104230.0,0.1474213]
[1738193456027,0.26781864,104240.0,104230.0,0.1461682]
[1738193456254,0.26781864,104240.0,104230.0,0.1474213]
[1738193456430,0.14402,104240.0,104230.0,0.1474213]
[1738193456914,0.14402,104240.0,104230.0,0.1461682]
[1738193457476,0.14402,104240.0,104230.0,0.1474213]
[1738193458973,0.17276535,104240.0,104230.0,0.1474213]
[1738193460386,0.02886735,104240.0,104230.0,0.1474213]
[1738193460650,0.17276535,104240.0,104230.0,0.1474213]
[1738193462765,0.14402,104240.0,104230.0,0.1474213]
[1738193463947,0.24246241,104240.0,104230.0,0.0022562]
[1738193464188,0.39485482,104240.0,104230.0,0.0022562]
[1738193464439,0.5641618,104240.0,104230.0,0.0022562]
[1738193464812,0.5150618,104240.0,104230.0,0.0022562]
[1738193465010,0.39126316,104240.0,104230.0,0.0022562]
[1738193465211,0.5150618,104240.0,104230.0,0.0022562]
[1738193466530,0.5150618,104240.0,104230.0,0.0002562]
[1738193466736,0.52586111,104240.0,104230.0,0.0002562]
[1738193469073,0.39226316,104240.0,104230.0,0.1441682]
[1738193469217,0.39226316,104240.0,104230.0,0.0002562]
[1738193469411,0.5160618,104240.0,104230.0,0.0002562]
[1738193472760,0.61341856,104240.0,104230.0,0.0002562]
[1738193472973,0.6410618,104240.0,104230.0,0.0002562]
[1738193473184,0.143912,104230.0,104220.0,0.00025599]
[1738193473368,0.56755215,104230.0,104220.0,0.00025599]
[1738193473508,0.7121092,104230.0,104220.0,0.00025599]
[1738193473915,0.61475244,104230.0,104220.0,0.00025599]
[1738193474331,0.61575244,104230.0,104220.0,0.00025599]
[1738193478353,0.63498885,104230.0,104220.0,0.00025599]
[1738193479758,0.64439229,104230.0,104220.0,0.00025599]
[1738193480250,0.52979365,104230.0,104220.0,0.00025599]
[1738193480422,0.65359229,104230.0,104220.0,0.00025599]
[1738193481040,0.40375365,104230.0,104220.0,0.00025599]
[1738193481455,0.39459365,104230.0,104220.0,0.00025599]
[1738193481868,0.49195041,104230.0,104220.0,0.00025599]
[1738193482312,0.64195041,104230.0,104220.0,0.00025599]
[1738193482696,0.622714,104230.0,104220.0,0.00025599]
[1738193485187,0.14394,104210.0,104200.0,0.1236]
[1738193485395,0.14394,104210.0,104190.0,0.57608899]
[1738193485396,0.143953,104200.0,104190.0,0.01949058]
[1738193485594,0.3649948,104200.0,104180.0,0.38299099]
[1738193485809,0.5569508,104200.0,104180.0,0.57496999]
[1738193486135,0.143967,104190.0,104180.0,0.19103099]
[1738193486334,0.26776564,104190.0,104180.0,0.04705599]
[1738193486511,0.38020259,104190.0,104180.0,0.04753586]
[1738193487041,0.38020259,104190.0,104170.0,0.527958]
[1738193487234,0.143967,104190.0,104180.0,0.148981]
[1738193487419,0.143967,104190.0,104180.0,0.143981]
[1738193488365,0.143967,104190.0,104170.0,0.52810185]
[1738193488366,0.55817559,104190.0,104170.0,0.52810185]
[1738193488548,0.55818659,104190.0,104180.0,0.143981]
[1738193488761,0.5569868,104190.0,104180.0,0.008]
[1738193488998,0.5569868,104190.0,104180.0,0.009]
[1738193489472,0.5569868,104190.0,104180.0,0.151981]
[1738193489670,0.43318816,104190.0,104180.0,0.143981]
[1738193489877,0.43318816,104190.0,104180.0,0.145981]
[1738193490305,0.24122116,104190.0,104180.0,0.145981]
[1738193491019,0.3650198,104190.0,104180.0,0.145981]
[1738193491546,0.3650198,104190.0,104180.0,0.14589277]
[1738193491745,0.24122116,104190.0,104180.0,0.14589277]
[1738193492316,0.3650198,104190.0,104180.0,0.14589277]
[1738193492609,0.24122116,104190.0,104180.0,0.14589277]
[1738193495449,0.09724316,104190.0,104180.0,0.14589277]
[1738193495645,0.65160064,104210.0,104190.0,0.143967]
[1738193495852,0.24119616,104200.0,104180.0,0.466219]
[1738193496098,0.5569378,104200.0,104190.0,0.143967]
[1738193496984,0.143967,104190.0,104180.0,0.14398]
[1738193497591,0.7488938,104200.0,104180.0,0.335946]
[1738193497753,0.7498938,104200.0,104180.0,0.335946]
[1738193497957,0.7498938,104200.0,104180.0,0.527911]
[1738193498568,0.11241115,104190.0,104180.0,0.14398]
[1738193499754,0.11241115,104190.0,104180.0,0.14598]
[1738193500283,0.5569468,104200.0,104190.0,0.143967]
[1738193500460,0.43314816,104200.0,104190.0,0.143967]
[1738193501253,0.09724316,104200.0,104190.0,0.143967]
[1738193501448,0.144953,104200.0,104190.0,0.143967]
[1738193502050,0.26875164,104200.0,104190.0,0.143967]
[1738193502294,0.143967,104190.0,104180.0,0.0002562]
[1738193502503,0.36620866,104190.0,104180.0,0.0002562]
[1738193502704,0.09724316,104190.0,104180.0,0.2202372]
[1738193502918,0.002,104200.0,104190.0,0.143967]
[1738193503119,0.63821664,104220.0,104200.0,0.143953]
[1738193503325,0.14394,104210.0,104200.0,0.143953]
[1738193503745,0.7687968,104220.0,104200.0,0.335887]
[1738193503876,0.14394,104210.0,104200.0,0.143953]
[1738193504078,0.335865,104210.0,104190.0,0.651367]
[1738193504298,0.65159164,104210.0,104190.0,0.651369]
[1738193504503,0.5569068,104210.0,104190.0,0.459413]
[1738193504704,0.05869138,104200.0,104190.0,0.267467]
[1738193506181,0.35784,104220.0,104200.0,0.527801]
[1738193506395,0.45308316,104220.0,104200.0,0.527801]
[1738193506546,0.004,104210.0,104200.0,0.383859]
[1738193507262,0.45308316,104220.0,104200.0,0.527801]
[1738193507449,0.45508316,104220.0,104210.0,0.14394]
[1738193507651,0.11924316,104220.0,104210.0,0.14394]
[1738193508059,0.26316916,104220.0,104210.0,0.14394]
[1738193508514,0.26364826,104220.0,104210.0,0.14394]
[1738193509276,0.001,104210.0,104200.0,0.465255]
[1738193509712,0.5793529,104220.0,104200.0,0.465255]
[1738193509891,0.5773529,104220.0,104210.0,0.14394]
[1738193510096,0.5813529,104220.0,104210.0,0.14394]
[1738193510267,0.5773529,104220.0,104200.0,0.465254]
[1738193510474,0.5773529,104220.0,104200.0,0.609195]
[1738193510677,0.001,104210.0,104200.0,0.465254]
[1738193511486,0.001,104210.0,104200.0,0.49484497]
[1738193512438,0.11772226,104220.0,104200.0,0.49484497]
[1738193512687,0.001,104210.0,104200.0,0.49484497]
[1738193512891,0.001,104210.0,104200.0,0.49984497]
[1738193513062,0.11784426,104220.0,104210.0,0.14394]
[1738193513269,0.26177026,104220.0,104210.0,0.14394]
[1738193514017,0.11784426,104220.0,104210.0,0.14394]
[1738193515585,0.11784426,104220.0,104210.0,0.14594]
[1738193516672,0.26177026,104220.0,104210.0,0.14594]
[1738193517325,0.11784426,104220.0,104210.0,0.14594]
[1738193518252,0.0206011,104220.0,104210.0,0.14594]
[1738193519125,0.0206011,104220.0,104210.0,0.27014]
[1738193519462,0.008122,104230.0,104220.0,0.143926]
[1738193519668,0.008122,104230.0,104220.0,0.219826]
[1738193520694,0.010122,104230.0,104220.0,0.219826]
[1738193521246,0.27783264,104230.0,104220.0,0.143926]
[1738193521451,0.3750758,104230.0,104220.0,0.143926]
[1738193521655,0.10736516,104230.0,104220.0,0.143926]
[1738193521829,0.25127716,104230.0,104220.0,0.143926]
[1738193521977,0.25027716,104230.0,104220.0,0.143926]
[1738193522178,0.25027716,104230.0,104220.0,0.145926]
[1738193522426,0.24927716,104230.0,104220.0,0.145926]
[1738193523648,0.24927716,104230.0,104220.0,0.002]
[1738193523857,0.45173633,104230.0,104220.0,0.002]
[1738193524616,0.3730758,104230.0,104220.0,0.0022562]
[1738193527452,0.36797943,104230.0,104220.0,0.0022562]
[1738193536457,0.36810143,104230.0,104220.0,0.0022562]
[1738193537197,0.24430279,104230.0,104220.0,0.0022562]
[1738193538035,0.56810143,104230.0,104220.0,0.0022562]
[1738193546529,0.56810143,104230.0,104220.0,0.03189978]
[1738193550301,0.92010007,104230.0,104220.0,0.03189978]
[1738193550555,1.00168487,104230.0,104220.0,0.0022562]
[1738193550762,1.37152971,104230.0,104220.0,2e-07]
[1738193551628,0.293953,104200.0,104190.0,0.00020533]
[1738193551856,0.51504268,104200.0,104190.0,0.00020533]
[1738193552061,0.51504268,104200.0,104190.0,0.02986605]
[1738193552892,0.51504268,104200.0,104190.0,0.03486605]
[1738193553568,0.51504268,104200.0,104190.0,0.03586605]
[1738193554681,0.60462867,104200.0,104190.0,0.03586605]
[1738193555009,0.51504268,104200.0,104190.0,0.03586605]
[1738193557084,0.52479275,104200.0,104190.0,0.03586605]
[1738193557937,0.52479275,104200.0,104190.0,0.02986605]
[1738193558142,0.52579275,104200.0,104190.0,0.02986605]
[1738193558323,0.52679275,104200.0,104190.0,0.02986605]
[1738193559196,0.60211465,104200.0,104190.0,0.02986605]
[1738193560147,0.82327005,104200.0,104190.0,0.02986605]
[1738193560358,1.23162259,104200.0,104190.0,5e-08]
[1738193560608,0.50311954,104190.0,104180.0,0.02965028]
[1738193560778,0.86274478,104190.0,104180.0,0.02965028]
[1738193561164,0.427895,104170.0,104160.0,0.08570836]
[1738193561366,0.86399163,104170.0,104160.0,0.11535444]
[1738193561832,0.82052024,104170.0,104160.0,0.11535444]
[1738193562018,0.84727278,104170.0,104160.0,0.11535444]
[1738193562221,1.17737568,104170.0,104160.0,0.11535444]
[1738193562420,1.16737568,104170.0,104160.0,0.11535444]
[1738193562574,1.16937568,104170.0,104160.0,0.11535444]
[1738193562783,1.29348498,104170.0,104160.0,0.11535444]
[1738193563597,0.043,104160.0,104150.0,0.06650543]
[1738193563810,0.712323,104150.0,104140.0,0.00025599]
[1738193564019,1.03091758,104150.0,104140.0,0.02990037]
[1738193564215,1.03091758,104150.0,104140.0,0.02964438]
[1738193564216,1.25207298,104150.0,104140.0,0.02964438]
[1738193564466,0.033,104140.0,104120.0,0.02990037]
[1738193564672,0.62103676,104130.0,104120.0,0.02990037]
[1738193564848,0.66367524,104130.0,104120.0,0.03037947]
[1738193566042,0.66367524,104130.0,104120.0,0.03537947]
[1738193566943,0.5150918,104130.0,104120.0,0.03537947]
[1738193567552,0.5150918,104130.0,104120.0,0.03737947]
[1738193568876,0.63889044,104130.0,104120.0,0.03737947]
[1738193569435,0.5150918,104130.0,104120.0,0.03737947]
[1738193569834,0.63889044,104130.0,104120.0,0.03737947]
[1738193570465,0.63901244,104130.0,104120.0,0.03737947]
[1738193570698,0.7363692,104130.0,104120.0,0.03537947]
[1738193570886,0.74702589,104130.0,104120.0,0.03537947]
[1738193571434,0.64866913,104130.0,104120.0,0.03537947]
[1738193571639,0.56333249,104130.0,104120.0,0.03037947]
[1738193571851,0.68813113,104130.0,104120.0,0.03037947]
[1738193572051,0.68913113,104130.0,104120.0,0.03037947]
[1738193572196,0.68813113,104130.0,104120.0,0.03037947]
[1738193572404,0.56433249,104130.0,104120.0,0.03037947]
[1738193572608,0.56533249,104130.0,104120.0,0.03037947]
[1738193573888,0.52687049,104130.0,104120.0,0.03037947]
[1738193574402,0.66947139,104130.0,104120.0,0.03037947]
[1738193574606,1.06682815,104130.0,104120.0,0.03037947]
[1738193574809,0.64807139,104130.0,104120.0,0.03037947]
[1738193576795,0.79807139,104130.0,104120.0,0.03037947]
[1738193578453,0.71607139,104130.0,104120.0,0.03037947]
[1738193582040,0.57202139,104130.0,104100.0,0.00025599]
[1738193582238,0.26787664,104110.0,104100.0,0.03001387]
[1738193582440,0.2210418,104110.0,104100.0,0.17410587]
[1738193582642,0.35097959,104130.0,104120.0,0.144064]
[1738193582643,0.15583369,104130.0,104120.0,0.144064]
[1738193582888,0.24342016,104130.0,104120.0,0.173678]
[1738193583040,0.3662188,104130.0,104120.0,0.029614]
[1738193583256,0.5582908,104130.0,104120.0,0.029614]
[1738193583450,0.5592908,104130.0,104120.0,0.029614]
[1738193583874,0.5582908,104130.0,104120.0,0.029614]
[1738193584249,0.7493678,104130.0,104110.0,0.635368]
[1738193584457,0.09724316,104120.0,104110.0,0.299204]
[1738193584657,0.46004764,104130.0,104110.0,0.635365]
[1738193584882,0.5572908,104130.0,104110.0,0.635365]
[1738193585299,0.5572908,104130.0,104120.0,0.002]
[1738193585813,0.24142016,104130.0,104120.0,0.175678]
[1738193586168,0.09736516,104130.0,104120.0,0.173678]
[1738193586784,0.3652138,104130.0,104120.0,0.029614]
[1738193587551,0.09736516,104130.0,104120.0,0.175678]
[1738193587757,0.000122,104130.0,104120.0,0.175678]
[1738193587966,0.000122,104130.0,104120.0,0.223578]
[1738193588138,0.000122,104130.0,104120.0,0.303078]
[1738193592513,0.000122,104130.0,104120.0,0.4533342]
[1738193594840,0.51740607,104150.0,104130.0,0.336113]
[1738193595158,0.51740607,104150.0,104130.0,0.173664]
[1738193595159,0.42260823,104150.0,104130.0,0.173664]
[1738193595343,0.63488559,104150.0,104130.0,0.365729]
[1738193595744,0.44284359,104150.0,104130.0,0.365729]
[1738193595941,0.44284359,104150.0,104130.0,0.557794]
[1738193596148,0.44684359,104150.0,104130.0,0.557794]
[1738193596466,0.44884359,104150.0,104130.0,0.557794]
[1738193596666,0.01793833,104140.0,104130.0,0.365729]
[1738193596827,0.01793833,104140.0,104130.0,0.173664]
[1738193598212,0.44484359,104150.0,104130.0,0.557786]
[1738193598444,0.001,104140.0,104130.0,0.36572]
[1738193598862,0.002,104140.0,104130.0,0.173664]
[1738193599042,0.001,104140.0,104130.0,0.173664]
[1738193599945,0.002,104140.0,104130.0,0.173664]
[1738193601424,0.002,104140.0,104130.0,0.14405]
[1738193601838,0.146036,104140.0,104130.0,0.14405]
[1738193602039,0.43653154,104140.0,104120.0,0.6137912]
[1738193602229,0.62859254,104140.0,104120.0,0.64353124]
[1738193602378,0.62859254,104140.0,104120.0,0.6137912]
[1738193602577,0.24347954,104140.0,104130.0,0.14405]